lending/lending_fUSD_20250131
["ID","MTS","AMOUNT","RATE_DAILY","PERIOD"]
[351133151,1738347044789,-500.0,0.00017396,2]
[351133152,1738347044799,-500.0,0.00017396,2]
[351133153,1738347044808,-500.0,0.00017396,2]
[351133154,1738347044818,-500.0,0.00017396,2]
[351133155,1738347044828,-500.0,0.00017396,2]
[351133156,1738347044838,-500.0,0.00017396,2]
[351133157,1738347044847,-500.0,0.00017396,2]
[351133158,1738347044857,-500.0,0.00017396,2]
[351133159,1738347044867,-500.0,0.00017396,2]
[351133160,1738347044877,-500.0,0.00017396,2]
[351133161,1738347044886,-500.0,0.00017396,2]
[351133162,1738347044896,-500.0,0.00017396,2]
[351133163,1738347044906,-500.0,0.00017396,2]
[351133164,1738347044916,-500.0,0.00017396,2]
[351133165,1738347044925,-500.0,0.00017396,2]
[351133166,1738347044935,-500.0,0.00017396,2]
[351133167,1738347044945,-500.0,0.00017396,2]
[351133168,1738347044957,-500.0,0.00017396,2]
[351133169,1738347044968,-500.0,0.00017396,2]
[351133170,1738347044978,-500.0,0.00017396,2]
[351133171,1738347044989,-500.0,0.00017396,2]
[351133172,1738347044998,-565.2,0.00017396,2]
[351133173,1738347045008,-500.0,0.00017396,2]
[351133174,1738347045018,-500.0,0.00017396,2]
[351133175,1738347045028,-943.27,0.00017396,2]
[351133176,1738347045037,-713.29,0.00017396,2]
[351133177,1738347045047,-603.35174939,0.00017396,2]
[351133178,1738347045056,-500.0,0.00017396,2]
[351133179,1738347045067,-500.0,0.00017396,2]
[351133180,1738347045076,-500.0,0.00017396,2]
[351133181,1738347045086,-500.0,0.00017396,2]
[351133182,1738347045099,-557.95,0.00017396,2]
[351133183,1738347045109,-500.0,0.00017396,2]
[351133184,1738347045119,-500.0,0.00017396,2]
[351133185,1738347045130,-500.0,0.00017396,2]
[351133186,1738347045141,-500.0,0.00017396,2]
[351133187,1738347045152,-500.0,0.00017396,2]
[351133188,1738347045162,-500.0,0.00017396,2]
[351133190,1738347045172,-1213.83,0.00017396,2]
[351133191,1738347045183,-500.0,0.00017396,2]
[351133193,1738347045193,-1121.05,0.00017396,2]
[351133194,1738347045202,-152.283895,0.00017396,2]
[351133195,1738347045212,-500.0,0.00017396,2]
[351133196,1738347045221,-1093.93,0.00017396,2]
[351133197,1738347045231,-500.0,0.00017396,2]
[351133198,1738347045240,-559.09,0.00017396,2]
[351133199,1738347045250,-500.0,0.00017396,2]
[351133200,1738347045259,-500.0,0.00017396,2]
[351133201,1738347045270,-528.45,0.00017396,2]
[351133202,1738347045279,-500.0,0.00017396,2]
[351133204,1738347045289,-583.43,0.00017396,2]
[351133206,1738347045299,-500.0,0.00017396,2]
[351133208,1738347045308,-500.0,0.00017396,2]
[351133210,1738347045317,-500.0,0.00017396,2]
[351133212,1738347045327,-500.0,0.00017396,2]
[351133214,1738347045336,-500.0,0.00017396,2]
[351133217,1738347045346,-500.0,0.00017396,2]
[351133220,1738347045355,-500.0,0.00017396,2]
[351133223,1738347045364,-500.0,0.00017396,2]
[351133225,1738347045374,-500.0,0.00017396,2]
[351133227,1738347045384,-500.0,0.00017396,2]
[351133229,1738347045395,-500.0,0.00017396,2]
[351133231,1738347045405,-704.25,0.00017396,2]
[351133233,1738347045414,-453.05763407,0.00017396,2]
[351133237,1738347045446,-184.61236593,0.00017396,2]
[351133239,1738347045456,-125.61901707,0.00017396,2]
[351133242,1738347045488,-374.38098293,0.00017396,2]
[351133243,1738347045497,-14.48265276,0.00017396,2]
[351133252,1738347045598,-948.77734724,0.00017396,2]
[351133253,1738347045607,-500.0,0.00017396,2]
[351133254,1738347045618,-575.74,0.00017396,2]
[351133255,1738347045628,-69.28265276,0.00017396,2]
[351133256,1738347045662,-1026.78734724,0.00017396,2]
[351133257,1738347045672,-500.0,0.00017396,2]
[351133258,1738347045683,-500.0,0.00017396,2]
[351133259,1738347045693,-1000.0,0.00017396,2]
[351133260,1738347045703,-341.47,0.00017396,2]
[351133261,1738347045713,-500.0,0.00017396,2]
[351133262,1738347045725,-700.6,0.00017396,2]
[351133263,1738347045735,-1377.4,0.00017396,2]
[351133264,1738347045745,-500.0,0.00017396,2]
[351133265,1738347045756,-1209.25,0.00017396,2]
[351133266,1738347045765,-500.0,0.00017396,2]
[351133267,1738347045775,-500.0,0.00017396,2]
[351133268,1738347045784,-500.0,0.00017396,2]
[351133269,1738347045795,-2037.39,0.00017396,2]
[351133270,1738347045805,-500.0,0.00017396,2]
[351133271,1738347045815,-500.0,0.00017396,2]
[351133272,1738347045826,-637.04,0.00017396,2]
[351133273,1738347045836,-841.63,0.00017396,2]
[351133274,1738347045846,-500.0,0.00017396,2]
[351133275,1738347045855,-500.0,0.00017396,2]
[351133276,1738347045865,-500.0,0.00017396,2]
[351133277,1738347045874,-684.85,0.00017396,2]
[351133278,1738347045884,-500.0,0.00017396,2]
[351133279,1738347045895,-500.0,0.00017396,2]
[351133280,1738347045905,-500.0,0.00017396,2]
[351133281,1738347045915,-500.0,0.00017396,2]
[351133282,1738347045924,-500.0,0.00017396,2]
[351133283,1738347045934,-500.0,0.00017396,2]
[351133284,1738347045944,-918.63,0.00017396,2]
[351133285,1738347045954,-500.0,0.00017396,2]
[351133286,1738347045964,-6268.83,0.00017396,2]
[351133287,1738347045974,-500.0,0.00017397,2]
[351133288,1738347045984,-500.0,0.00017397,2]
[351133289,1738347045994,-536.3,0.00017397,2]
[351133290,1738347046003,-500.0,0.00017397,2]
[351133291,1738347046012,-500.0,0.00017397,2]
[351133292,1738347046022,-500.0,0.00017397,2]
[351133293,1738347046031,-523.11458787,0.00017397,2]
[351133294,1738347046042,-500.0,0.00017397,2]
[351133295,1738347046052,-500.0,0.00017397,2]
[351133296,1738347046062,-715.83,0.00017397,2]
[351133297,1738347046071,-500.0,0.00017397,2]
[351133298,1738347046081,-614.38,0.00017397,2]
[351133299,1738347046091,-500.0,0.00017397,2]
[351133300,1738347046102,-867.89,0.00017397,2]
[351133301,1738347046115,-651.18,0.00017397,2]
[351133302,1738347046126,-500.0,0.00017397,2]
[351133303,1738347046136,-500.0,0.00017397,2]
[351133304,1738347046147,-500.0,0.00017397,2]
[351133305,1738347046157,-743.86,0.00017397,2]
[351133306,1738347046167,-500.0,0.00017397,2]
[351133307,1738347046178,-500.0,0.00017397,2]
[351133308,1738347046189,-500.0,0.00017397,2]
[351133309,1738347046201,-500.0,0.00017397,2]
[351133310,1738347046213,-705.66132175,0.00017417,2]
[351133311,1738347046223,-41031.64818031,0.00017481,2]
[351133312,1738347046234,-41031.64818031,0.00017482,2]
[351133313,1738347046245,-41031.64818031,0.00017487,2]
[351133314,1738347046255,-200.0,0.0001749,2]
[351133315,1738347046264,-167610.79862275,0.00017495,2]
[351133316,1738347046275,-5000.0,0.00017506,4]
[351133317,1738347046286,-257.69384314,0.00017507,2]
[351133318,1738347046296,-8240.80704827,0.00017508,2]
[351133319,1738347046306,-200.0,0.00017509,2]
[351133320,1738347046315,-257.69384314,0.00017514,2]
[351133321,1738347046325,-3857.06111452,0.00017515,2]
[351133322,1738347046335,-53657.70810832,0.00017515,2]
[351133323,1738347046386,-441.1906346,0.00017515,2]
[351133324,1738347046404,-500.0,0.00016984,2]
[351133325,1738347046414,-53.6499992,0.00017515,2]
[351133326,1738347188651,154.23,0.00010137,2]
[351133329,1738348082739,9845.77,0.0001,2]
[351133330,1738348082762,10000.0,0.0001,2]
[351133331,1738348082789,10000.0,0.0001,2]
[351133332,1738348082811,476.42819213,0.0001,2]
[351133358,1738348231682,-239.23852726,0.00011761,2]
[351133359,1738348231695,-1541.76147274,0.00011761,2]
[351133360,1738348231705,-150.0,0.0001183,2]
[351133361,1738348231714,-442.49957285,0.000119,2]
[351133362,1738348231723,-150.0,0.00011908,2]
[351133363,1738348231733,-164.80773758,0.00011935,2]
[351133364,1738348231742,-906.56975435,0.00011935,2]
[351133365,1738348231752,-300.0,0.00011972,2]
[351133366,1738348231762,-2616.16146248,0.00011973,2]
[351133367,1738348231784,-14021.5236,0.00011973,2]
[351133368,1738348231849,-287.95166,0.00011973,2]
[351133369,1738348231860,-1042.8,0.00011973,2]
[351133370,1738348231909,-403.14513275,0.00011973,2]
[351133371,1738348231920,-943.7974135,0.00011973,2]
[351133372,1738348231931,-43295.62073127,0.00011973,2]
[351133373,1738348231940,-1773.4404,0.00011973,2]
[351133374,1738348231950,-500.0,0.00011973,2]
[351133375,1738348231959,-239.5279388,0.0001199,2]
[351133376,1738348231969,-300.0,0.00011999,2]
[351133377,1738348231978,-1759.35922118,0.00012,2]
[351133378,1738348231987,-1139.57093131,0.00012,2]
[351133379,1738348231996,-14946.00039296,0.00012,2]
[351133380,1738348232008,-123576.01687971,0.00012,2]
[351133381,1738348232020,-272.4997295,0.00012,2]
[351133382,1738348232033,-927.61514,0.00012,2]
[351133383,1738348232060,-10406.17632751,0.00012,2]
[351133384,1738348232071,-2802.41117801,0.00012,2]
[351133396,1738348237507,-1029799.03949227,0.00012,2]
[351133397,1738348237517,-1759.35922118,0.00012,2]
[351133398,1738348237527,-12408297.200525,0.00012,2]
[351133399,1738348237537,-442.49957284,0.00012035,2]
[351133400,1738348237546,-442.49957284,0.00012169,2]
[351133401,1738348237555,-442.49957284,0.00012304,2]
[351133402,1738348237565,-442.49957284,0.00012439,2]
[351133403,1738348237575,-442.49957284,0.00012574,2]
[351133404,1738348237584,-442.49957284,0.00012708,2]
[351133405,1738348237593,-442.49957284,0.00012843,2]
[351133406,1738348237603,-150.0,0.00012937,2]
[351133407,1738348237612,-997.17049626,0.00012943,2]
[351133408,1738348237622,-550.0,0.00013,2]
[351133409,1738348237631,-420.0,0.00013143,2]
[351133410,1738348237641,-758.23,0.00013316,2]
[351133411,1738348237651,-926.11,0.000137,2]
[351133412,1738348237661,-926.11,0.000137,2]
[351133413,1738348237670,-997.17049626,0.00013737,2]
[351133414,1738348237680,-997.17049626,0.0001453,2]
[351133415,1738348237690,-250.0,0.0001484,2]
[351133416,1738348237699,-1153.16590261,0.000149,2]
[351133417,1738348237708,-1153.16590249,0.00015038,2]
[351133418,1738348237717,-1153.16590249,0.00015176,2]
[351133419,1738348237727,-1153.16590249,0.00015314,2]
[351133420,1738348237736,-997.17049626,0.00015324,2]
[351133421,1738348237745,-164.80773758,0.00015368,2]
[351133422,1738348237754,-906.56975435,0.00015368,2]
[351133423,1738348237763,-1153.16590249,0.00015452,2]
[351133437,1738348237969,-758.23,0.0001558,2]
[351133439,1738348237978,-1153.16590249,0.0001559,2]
[351133442,1738348237987,-1153.16590249,0.00015728,2]
[351133445,1738348237997,-1153.16590249,0.00015866,2]
[351133447,1738348238006,-31719.20698009,0.00016,2]
[351133450,1738348238015,-1153.16590249,0.00016003,2]
[351133453,1738348238025,-6919.73553785,0.00016056,2]
[351133455,1738348238035,-700.48,0.00016086,2]
[351133459,1738348238045,-500.0,0.0001609,2]
[351133460,1738348238054,-997.17049626,0.00016118,2]
[351133463,1738348238063,-1000.0,0.00016127,2]
[351133464,1738348238072,-1153.16590249,0.00016141,2]
[351133466,1738348238080,-253.58,0.00016165,2]
[351133468,1738348238090,-23900.0,0.00016183,2]
[351133470,1738348238098,-250.0,0.00016194,2]
[351133472,1738348238107,-1153.16590249,0.00016279,2]
[351133474,1738348238116,-1153.16590249,0.00016417,2]
[351133476,1738348238125,-1455.79,0.00016438,2]
[351133478,1738348238134,-686.9,0.00016438,2]
[351133480,1738348238142,-500.0,0.00016438,2]
[351133482,1738348238154,-500.0,0.00016438,2]
[351133484,1738348238163,-2551.27,0.00016438,2]
[351133486,1738348238173,-1359.74,0.00016438,2]
[351133488,1738348238182,-3164.08,0.00016438,2]
[351133490,1738348238191,-1771.52,0.00016438,2]
[351133492,1738348238200,-500.0,0.00016438,2]
[351133494,1738348238209,-3352.95,0.00016438,2]
[351133496,1738348238218,-1723.08,0.00016438,2]
[351133498,1738348238228,-500.0,0.00016438,2]
[351133500,1738348238237,-904.61,0.00016438,2]
[351133502,1738348238246,-3205.13,0.00016438,2]
[351133504,1738348238255,-2877.99,0.00016438,2]
[351133506,1738348238263,-2087.9,0.00016438,2]
[351133508,1738348238273,-500.0,0.00016438,2]
[351133510,1738348238282,-500.0,0.00016438,2]
[351133512,1738348238291,-2031.19,0.00016438,2]
[351133513,1738348238302,-1464.79,0.00016438,2]
[351133515,1738348238312,-505.7753631,0.00016438,2]
[351133517,1738348238321,-500.0,0.00016438,2]
[351133519,1738348238330,-500.0,0.00016438,2]
[351133521,1738348238339,-500.0,0.00016438,2]
[351133523,1738348238348,-7094.67,0.00016438,2]
[351133525,1738348238357,-502.77187198,0.00016438,2]
[351133527,1738348238367,-500.0,0.00016438,2]
[351133529,1738348238376,-846.73,0.00016438,2]
[351133531,1738348238385,-500.0,0.00016438,2]
[351133533,1738348238394,-500.0,0.00016438,2]
[351133535,1738348238404,-500.0,0.00016438,2]
[351133537,1738348238413,-1572.93,0.00016438,2]
[351133539,1738348238423,-521.44495163,0.00016438,2]
[351133541,1738348238432,-500.0,0.00016438,2]
[351133543,1738348238441,-1436.17,0.00016438,2]
[351133545,1738348238451,-500.0,0.00016438,2]
[351133547,1738348238460,-4828.93,0.000165,2]
[351133549,1738348238469,-171.98,0.0001651,2]
[351133551,1738348238479,-1153.16590249,0.00016555,2]
[351133553,1738348238488,-1455.79,0.00016575,2]
[351133555,1738348238500,-686.9,0.00016575,2]
[351133557,1738348238510,-500.0,0.00016575,2]
[351133559,1738348238519,-500.0,0.00016575,2]
[351133560,1738348238529,-2551.27,0.00016575,2]
[351133562,1738348238539,-1359.74,0.00016575,2]
[351133564,1738348238548,-3164.08,0.00016575,2]
[351133565,1738348238558,-1771.52,0.00016575,2]
[351133566,1738348238567,-500.0,0.00016575,2]
[351133567,1738348238578,-3352.95,0.00016575,2]
[351133568,1738348238587,-1723.08,0.00016575,2]
[351133569,1738348238596,-500.0,0.00016575,2]
[351133570,1738348238605,-904.61,0.00016575,2]
[351133571,1738348238614,-3205.13,0.00016575,2]
[351133572,1738348238623,-2877.99,0.00016575,2]
[351133573,1738348238633,-2087.9,0.00016575,2]
[351133574,1738348238642,-500.0,0.00016575,2]
[351133575,1738348238655,-500.0,0.00016575,2]
[351133576,1738348238664,-2031.19,0.00016575,2]
[351133577,1738348238673,-1464.79,0.00016575,2]
[351133578,1738348238683,-500.0,0.00016575,2]
[351133579,1738348238692,-500.0,0.00016575,2]
[351133580,1738348238702,-503.78036275,0.00016575,2]
[351133581,1738348238711,-7094.67,0.00016575,2]
[351133582,1738348238721,-500.0,0.00016575,2]
[351133583,1738348238731,-846.73,0.00016575,2]
[351133584,1738348238740,-500.0,0.00016575,2]
[351133585,1738348238750,-500.0,0.00016575,2]
[351133586,1738348238760,-418.63899687,0.00016575,2]
[351133587,1738348238769,-1572.93,0.00016575,2]
[351133588,1738348238778,-500.0,0.00016575,2]
[351133589,1738348238788,-1436.17,0.00016575,2]
[351133590,1738348238797,-500.0,0.00016575,2]
[351133591,1738348238806,-154.12,0.00016658,30]
[351133592,1738348238815,-1153.16590249,0.00016693,2]
[351133593,1738348238825,-1455.79,0.00016712,2]
[351133594,1738348238834,-686.9,0.00016712,2]
[351133595,1738348238843,-500.0,0.00016712,2]
[351133596,1738348238854,-500.0,0.00016712,2]
[351133597,1738348238863,-2551.27,0.00016712,2]
[351133598,1738348238872,-1359.74,0.00016712,2]
[351133599,1738348238882,-3164.08,0.00016712,2]
[351133600,1738348238892,-1771.52,0.00016712,2]
[351133601,1738348238904,-500.0,0.00016712,2]
[351133602,1738348238913,-3352.95,0.00016712,2]
[351133603,1738348238923,-1723.08,0.00016712,2]
[351133604,1738348238932,-500.0,0.00016712,2]
[351133605,1738348238941,-904.61,0.00016712,2]
[351133606,1738348238950,-3205.13,0.00016712,2]
[351133607,1738348238960,-2877.99,0.00016712,2]
[351133608,1738348238969,-2087.9,0.00016712,2]
[351133609,1738348238979,-500.0,0.00016712,2]
[351133610,1738348238988,-500.0,0.00016712,2]
[351133611,1738348238998,-2031.19,0.00016712,2]
[351133612,1738348239008,-1464.79,0.00016712,2]
[351133613,1738348239018,-500.0,0.00016712,2]
[351133614,1738348239028,-500.0,0.00016712,2]
[351133615,1738348239038,-7094.67,0.00016712,2]
[351133616,1738348239047,-500.0,0.00016712,2]
[351133617,1738348239057,-846.73,0.00016712,2]
[351133618,1738348239067,-500.0,0.00016712,2]
[351133619,1738348239076,-341.35183389,0.00016712,2]
[351133620,1738348239086,-1572.93,0.00016712,2]
[351133621,1738348239095,-500.0,0.00016712,2]
[351133622,1738348239104,-1436.17,0.00016712,2]
[351133623,1738348239114,-500.0,0.00016712,2]
[351133624,1738348239123,-286.43761267,0.00016759,2]
[351133625,1738348239132,-1153.16590249,0.00016831,2]
[351133626,1738348239142,-500.0,0.00016848,2]
[351133627,1738348239152,-1455.79,0.00016849,2]
[351133628,1738348239166,-686.9,0.00016849,2]
[351133629,1738348239176,-500.0,0.00016849,2]
[351133630,1738348239186,-500.0,0.00016849,2]
[351133631,1738348239197,-2551.27,0.00016849,2]
[351133632,1738348239207,-1359.74,0.00016849,2]
[351133633,1738348239217,-3164.08,0.00016849,2]
[351133634,1738348239227,-1771.52,0.00016849,2]
[351133635,1738348239237,-500.0,0.00016849,2]
[351133636,1738348239247,-3352.95,0.00016849,2]
[351133637,1738348239257,-1723.08,0.00016849,2]
[351133638,1738348239267,-500.0,0.00016849,2]
[351133639,1738348239276,-904.61,0.00016849,2]
[351133640,1738348239286,-3205.13,0.00016849,2]
[351133641,1738348239295,-2877.99,0.00016849,2]
[351133642,1738348239305,-2087.9,0.00016849,2]
[351133643,1738348239314,-500.0,0.00016849,2]
[351133644,1738348239323,-500.0,0.00016849,2]
[351133645,1738348239332,-2031.19,0.00016849,2]
[351133646,1738348239341,-1464.79,0.00016849,2]
[351133647,1738348239350,-500.0,0.00016849,2]
[351133648,1738348239359,-500.0,0.00016849,2]
[351133649,1738348239368,-7094.67,0.00016849,2]
[351133650,1738348239378,-500.0,0.00016849,2]
[351133651,1738348239387,-846.73,0.00016849,2]
[351133652,1738348239396,-500.0,0.00016849,2]
[351133654,1738348239411,-1572.93,0.00016849,2]
[351133655,1738348239419,-500.0,0.00016849,2]
[351133656,1738348239428,-1436.17,0.00016849,2]
[351133657,1738348239438,-500.0,0.00016849,2]
[351133658,1738348239448,-3908.0,0.00016866,2]
[351133660,1738348239457,-150.0,0.00016866,2]
[351133662,1738348239467,-1271.0,0.00016866,2]
[351133664,1738348239476,-2021.0,0.00016866,2]
[351133665,1738348239486,-639.0,0.00016866,2]
[351133668,1738348239496,-1005.0,0.00016866,2]
[351133669,1738348239506,-568.0,0.00016866,2]
[351133670,1738348239515,-150.0,0.00016866,2]
[351133671,1738348239525,-637.0,0.00016866,2]
[351133672,1738348239535,-1867.0,0.00016866,2]
[351133673,1738348239544,-539.491,0.00016866,2]
[351133674,1738348239553,-997.17049626,0.00016911,2]
[351133675,1738348239562,-30931.26,0.00016922,2]
[351133676,1738348239572,-999.99,0.00016922,2]
[351133677,1738348239583,-1153.16590249,0.00016969,2]
[351133678,1738348239593,-519.92,0.00016983,2]
[351133679,1738348239602,-2652.51,0.00016983,2]
[351133680,1738348239611,-1746.14,0.00016983,2]
[351133681,1738348239620,-657.65,0.00016984,2]
[351133682,1738348239629,-500.0,0.00016984,2]
[351133683,1738348239638,-500.0,0.00016984,2]
[351133684,1738348239647,-500.0,0.00016984,2]
[351133685,1738348239660,-333.66197328,0.00016984,2]
[351133686,1738348239670,-500.0,0.00016984,2]
[351133687,1738348239679,-500.0,0.00016984,2]
[351133688,1738348239688,-500.0,0.00016984,2]
[351133689,1738348239697,-500.0,0.00016984,2]
[351133690,1738348239706,-500.0,0.00016984,2]
[351133691,1738348239715,-500.0,0.00016984,2]
[351133692,1738348239724,-500.0,0.00016984,2]
[351133693,1738348239734,-500.0,0.00016984,2]
[351133694,1738348239743,-500.0,0.00016984,2]
[351133695,1738348239752,-500.0,0.00016984,2]
[351133696,1738348239761,-500.0,0.00016984,2]
[351133697,1738348239771,-500.0,0.00016984,2]
[351133698,1738348239781,-500.0,0.00016984,2]
[351133699,1738348239791,-500.0,0.00016984,2]
[351133700,1738348239800,-606.93,0.00016984,2]
[351133701,1738348239809,-500.0,0.00016984,2]
[351133702,1738348239818,-522.94,0.00016984,2]
[351133703,1738348239827,-500.0,0.00016984,2]
[351133704,1738348239837,-691.72,0.00016984,2]
[351133705,1738348239846,-694.08,0.00016984,2]
[351133706,1738348239856,-5000.0,0.00016984,4]
[351133707,1738348239865,-500.0,0.00016984,2]
[351133708,1738348239874,-500.0,0.00016984,2]
[351133709,1738348239883,-500.0,0.00016984,2]
[351133710,1738348239893,-500.0,0.00016984,2]
[351133711,1738348239905,-500.0,0.00016984,2]
[351133712,1738348239915,-500.0,0.00016984,2]
[351133713,1738348239924,-500.0,0.00016984,2]
[351133714,1738348239933,-500.0,0.00016984,2]
[351133715,1738348239942,-500.0,0.00016984,2]
[351133716,1738348239951,-500.0,0.00016984,2]
[351133717,1738348239960,-500.0,0.00016984,2]
[351133718,1738348239969,-500.0,0.00016984,2]
[351133719,1738348239978,-500.0,0.00016984,2]
[351133720,1738348239987,-544.21,0.00016984,2]
[351133721,1738348239996,-500.0,0.00016984,2]
[351133722,1738348240006,-500.0,0.00016984,2]
[351133723,1738348240015,-500.0,0.00016984,2]
[351133725,1738348240025,-500.0,0.00016984,2]
[351133727,1738348240034,-939.45,0.00016984,2]
[351133728,1738348240043,-500.0,0.00016984,2]
[351133729,1738348240052,-965.04,0.00016984,2]
[351133730,1738348240062,-1060.87,0.00016984,2]
[351133731,1738348240071,-500.0,0.00016984,2]
[351133732,1738348240081,-500.0,0.00016984,2]
[351133733,1738348240090,-500.0,0.00016984,2]
[351133734,1738348240104,-973.6,0.00016984,2]
[351133735,1738348240115,-500.0,0.00016984,2]
[351133736,1738348240125,-268.41713381,0.00016985,2]
[351133737,1738348240134,-500.0,0.00016985,2]
[351133738,1738348240144,-500.0,0.00016985,2]
[351133739,1738348240156,-500.0,0.00016985,2]
[351133740,1738348240166,-500.0,0.00016985,2]
[351133741,1738348240175,-500.0,0.00016985,2]
[351133742,1738348240185,-500.0,0.00016985,2]
[351133743,1738348240195,-500.0,0.00016985,2]
[351133744,1738348240205,-514.44267669,0.00016985,2]
[351133745,1738348240215,-500.0,0.00016985,2]
[351133746,1738348240224,-500.0,0.00016985,2]
[351133747,1738348240235,-500.0,0.00016985,2]
[351133748,1738348240246,-500.0,0.00016985,2]
[351133749,1738348240255,-506.07485819,0.00016985,2]
[351133750,1738348240265,-500.0,0.00016985,2]
[351133751,1738348240274,-500.0,0.00016985,2]
[351133752,1738348240284,-500.0,0.00016985,2]
[351133753,1738348240294,-500.0,0.00016985,2]
[351133754,1738348240303,-510.61,0.00016985,2]
[351133755,1738348240313,-244.61293814,0.00016985,2]
[351133756,1738348240323,-500.0,0.00016985,2]
[351133757,1738348240332,-500.0,0.00016985,2]
[351133758,1738348240343,-500.0,0.00016985,2]
[351133759,1738348240353,-500.0,0.00016985,2]
[351133760,1738348240362,-500.0,0.00016985,2]
[351133761,1738348240371,-500.0,0.00016985,2]
[351133762,1738348240382,-500.0,0.00016985,2]
[351133763,1738348240392,-500.0,0.00016985,2]
[351133764,1738348240403,-353.56134728,0.00016985,2]
[351133765,1738348240414,-500.0,0.00016985,2]
[351133766,1738348240423,-500.0,0.00016985,2]
[351133767,1738348240433,-500.0,0.00016985,2]
[351133768,1738348240442,-520.06565389,0.00016985,2]
[351133769,1738348240452,-500.0,0.00016985,2]
[351133770,1738348240462,-500.0,0.00016985,2]
[351133771,1738348240471,-500.0,0.00016985,2]
[351133772,1738348240480,-500.0,0.00016985,2]
[351133773,1738348240492,-500.0,0.00016985,2]
[351133774,1738348240504,-607.83137315,0.00016985,2]
[351133775,1738348240513,-500.0,0.00016985,2]
[351133776,1738348240523,-500.0,0.00016985,2]
[351133777,1738348240534,-500.0,0.00016985,2]
[351133778,1738348240543,-5000.0,0.00016985,2]
[351133779,1738348240553,-500.0,0.00016985,2]
[351133780,1738348240562,-500.0,0.00016985,2]
[351133781,1738348240573,-500.0,0.00016985,2]
[351133782,1738348240584,-500.0,0.00016985,2]
[351133783,1738348240593,-500.0,0.00016985,2]
[351133784,1738348240603,-500.0,0.00016985,2]
[351133785,1738348240612,-500.0,0.00016985,2]
[351133786,1738348240622,-500.0,0.00016985,2]
[351133787,1738348240631,-500.0,0.00016985,2]
[351133788,1738348240640,-500.0,0.00016985,2]
[351133789,1738348240650,-500.0,0.00016985,2]
[351133790,1738348240662,-500.0,0.00016985,2]
[351133791,1738348240672,-500.0,0.00016985,2]
[351133792,1738348240681,-500.0,0.00016985,2]
[351133793,1738348240690,-500.0,0.00016985,2]
[351133794,1738348240700,-500.0,0.00016985,2]
[351133795,1738348240709,-225.13587772,0.00016985,2]
[351133796,1738348240719,-500.0,0.00016985,2]
[351133797,1738348240727,-500.0,0.00016985,2]
[351133798,1738348240739,-500.0,0.00016985,2]
[351133799,1738348240749,-503.46220086,0.00016985,2]
[351133800,1738348240759,-500.0,0.00016985,2]
[351133801,1738348240767,-500.0,0.00016985,2]
[351133802,1738348240777,-500.0,0.00016985,2]
[351133803,1738348240787,-500.0,0.00016985,2]
[351133804,1738348240796,-500.0,0.00016985,2]
[351133805,1738348240806,-500.0,0.00016985,2]
[351133806,1738348240815,-500.0,0.00016985,2]
[351133807,1738348240824,-500.0,0.00016985,2]